{"text_format":"3","workbook":"xlsx","n_sheets":5,"sheets":["Табло","Разходи и приходи","Отчет за бюджета","Списъци с данни","Обобщена таблица на категориите"],"not_rendered":{"charts":3,"defined_names":8,"pivot_tables":2},"read":"whole","date_system":"1900"}

{"sheet":"Табло","index":0,"n_rows":21,"n_cols":16,"rows_kept":21,"merged":[[5,2,5,3],[8,9,8,10],[9,9,9,10],[10,9,10,10]]}
[]
[null,null,"Полумесечен домашен бюджет",{"$nulls":12},"ТАБЛО"]
[]
[]
[]
[null,null,{"$f":"CHOOSE(МесецБрой,\"Януари\",\"Февруари\",\"Март\",\"Април\",\"Май\",\"Юни\",\"Юли\",\"Август\",\"Септември\",\"Октомври\",\"Ноември\",\"Декември\")","v":"Септември"},null,9,{"$nulls":5},2012]
[]
[]
[null,null,"ОБЩО ЗА МЕСЕЦА","Monthly Totals",{"$nulls":5},"ОБЩО ЗА ГОДИНАТА",null,"Annual Totals"]
[null,null,"ПРИХОДИ","Разходи",{"$f":"SUMIF(Разходи[ДАТА],\"<=\"&Дата край на месец,Разходи[СУМА])-SUMIF(Разходи[ДАТА],\"<\"&Дата начало на месец,Разходи[СУМА])","v":{"v":0,"d":"0 лв."}},{"$nulls":4},"ПРИХОДИ",null,"Разходи",{"$f":"SUM(IF(YEAR(Разходи[ДАТА])=K6,Разходи[СУМА]))","v":{"v":1225,"d":"1,225 лв."}}]
[null,null,"РАЗХОДИ","приходи",{"$f":"SUMIF(приходи[ДАТА],\"<=\"&Дата край на месец,приходи[СУМА])-SUMIF(приходи[ДАТА],\"<\"&Дата начало на месец,приходи[СУМА])","v":{"v":0,"d":"0 лв."}},{"$nulls":4},"РАЗХОДИ",null,"приходи",{"$f":"SUM(IF(YEAR(приходи[ДАТА])=K6,приходи[СУМА]))","v":{"v":0,"d":"0 лв."}}]
[]
[]
[]
[]
[]
[{"$nulls":3},"ЯНУАРИ","ФЕВРУАРИ","МАРТ","АПРИЛ","МАЙ","ЮНИ","ЮЛИ","АВГУСТ","СЕПТЕМВРИ","ОКТОМВРИ","НОЕМВРИ","ДЕКЕМВРИ"]
[null,null,"Приходи 1-15",{"$f":"SUMIFS(приходи[СУМА],приходи[ОПИСАНИЕ],\"<=\"&Дата среда,приходи[ОПИСАНИЕ],\">=\"&Дата начало)","v":{"v":0,"d":"0.00 лв."}},{"$f":"SUMIFS(приходи[СУМА],приходи[ОПИСАНИЕ],\"<=\"&Дата среда,приходи[ОПИСАНИЕ],\">=\"&Дата начало)","v":{"v":0,"d":"0.00 лв."}},{"$f":"SUMIFS(приходи[СУМА],приходи[ОПИСАНИЕ],\"<=\"&Дата среда,приходи[ОПИСАНИЕ],\">=\"&Дата начало)","v":{"v":0,"d":"0.00 лв."}},{"$f":"SUMIFS(приходи[СУМА],приходи[ОПИСАНИЕ],\"<=\"&Дата среда,приходи[ОПИСАНИЕ],\">=\"&Дата начало)","v":{"v":0,"d":"0.00 лв."}},{"$f":"SUMIFS(приходи[СУМА],приходи[ОПИСАНИЕ],\"<=\"&Дата среда,приходи[ОПИСАНИЕ],\">=\"&Дата начало)","v":{"v":0,"d":"0.00 лв."}},{"$f":"SUMIFS(приходи[СУМА],приходи[ОПИСАНИЕ],\"<=\"&Дата среда,приходи[ОПИСАНИЕ],\">=\"&Дата начало)","v":{"v":0,"d":"0.00 лв."}},{"$f":"SUMIFS(приходи[СУМА],приходи[ОПИСАНИЕ],\"<=\"&Дата среда,приходи[ОПИСАНИЕ],\">=\"&Дата начало)","v":{"v":0,"d":"0.00 лв."}},{"$f":"SUMIFS(приходи[СУМА],приходи[ОПИСАНИЕ],\"<=\"&Дата среда,приходи[ОПИСАНИЕ],\">=\"&Дата начало)","v":{"v":0,"d":"0.00 лв."}},{"$f":"SUMIFS(приходи[СУМА],приходи[ОПИСАНИЕ],\"<=\"&Дата среда,приходи[ОПИСАНИЕ],\">=\"&Дата начало)","v":{"v":0,"d":"0.00 лв."}},{"$f":"SUMIFS(приходи[СУМА],приходи[ОПИСАНИЕ],\"<=\"&Дата среда,приходи[ОПИСАНИЕ],\">=\"&Дата начало)","v":{"v":0,"d":"0.00 лв."}},{"$f":"SUMIFS(приходи[СУМА],приходи[ОПИСАНИЕ],\"<=\"&Дата среда,приходи[ОПИСАНИЕ],\">=\"&Дата начало)","v":{"v":0,"d":"0.00 лв."}},{"$f":"SUMIFS(приходи[СУМА],приходи[ОПИСАНИЕ],\"<=\"&Дата среда,приходи[ОПИСАНИЕ],\">=\"&Дата начало)","v":{"v":0,"d":"0.00 лв."}}]
[null,null,"Приходи 16-край на месеца",{"$f":"SUMIFS(приходи[СУМА],приходи[ОПИСАНИЕ],\"<=\"&Дата край,приходи[ОПИСАНИЕ],\">=\"&Дата среда+1)","v":{"v":0,"d":"0.00 лв."}},{"$f":"SUMIFS(приходи[СУМА],приходи[ОПИСАНИЕ],\"<=\"&Дата край,приходи[ОПИСАНИЕ],\">=\"&Дата среда+1)","v":{"v":0,"d":"0.00 лв."}},{"$f":"SUMIFS(приходи[СУМА],приходи[ОПИСАНИЕ],\"<=\"&Дата край,приходи[ОПИСАНИЕ],\">=\"&Дата среда+1)","v":{"v":0,"d":"0.00 лв."}},{"$f":"SUMIFS(приходи[СУМА],приходи[ОПИСАНИЕ],\"<=\"&Дата край,приходи[ОПИСАНИЕ],\">=\"&Дата среда+1)","v":{"v":0,"d":"0.00 лв."}},{"$f":"SUMIFS(приходи[СУМА],приходи[ОПИСАНИЕ],\"<=\"&Дата край,приходи[ОПИСАНИЕ],\">=\"&Дата среда+1)","v":{"v":0,"d":"0.00 лв."}},{"$f":"SUMIFS(приходи[СУМА],приходи[ОПИСАНИЕ],\"<=\"&Дата край,приходи[ОПИСАНИЕ],\">=\"&Дата среда+1)","v":{"v":0,"d":"0.00 лв."}},{"$f":"SUMIFS(приходи[СУМА],приходи[ОПИСАНИЕ],\"<=\"&Дата край,приходи[ОПИСАНИЕ],\">=\"&Дата среда+1)","v":{"v":0,"d":"0.00 лв."}},{"$f":"SUMIFS(приходи[СУМА],приходи[ОПИСАНИЕ],\"<=\"&Дата край,приходи[ОПИСАНИЕ],\">=\"&Дата среда+1)","v":{"v":0,"d":"0.00 лв."}},{"$f":"SUMIFS(приходи[СУМА],приходи[ОПИСАНИЕ],\"<=\"&Дата край,приходи[ОПИСАНИЕ],\">=\"&Дата среда+1)","v":{"v":0,"d":"0.00 лв."}},{"$f":"SUMIFS(приходи[СУМА],приходи[ОПИСАНИЕ],\"<=\"&Дата край,приходи[ОПИСАНИЕ],\">=\"&Дата среда+1)","v":{"v":0,"d":"0.00 лв."}},{"$f":"SUMIFS(приходи[СУМА],приходи[ОПИСАНИЕ],\"<=\"&Дата край,приходи[ОПИСАНИЕ],\">=\"&Дата среда+1)","v":{"v":0,"d":"0.00 лв."}},{"$f":"SUMIFS(приходи[СУМА],приходи[ОПИСАНИЕ],\"<=\"&Дата край,приходи[ОПИСАНИЕ],\">=\"&Дата среда+1)","v":{"v":0,"d":"0.00 лв."}}]
[null,null,"Разходи 1-15",{"$f":"SUMIFS(Разходи[СУМА],Разходи[ДАТА],\"<=\"&Дата среда,Разходи[ДАТА],\">=\"&Дата начало)","v":{"v":0,"d":"0.00 лв."}},{"$f":"SUMIFS(Разходи[СУМА],Разходи[ДАТА],\"<=\"&Дата край,Разходи[ДАТА],\">=\"&Дата начало)","v":{"v":0,"d":"0.00 лв."}},{"$f":"SUMIFS(Разходи[СУМА],Разходи[ДАТА],\"<=\"&Дата край,Разходи[ДАТА],\">=\"&Дата начало)","v":{"v":0,"d":"0.00 лв."}},{"$f":"SUMIFS(Разходи[СУМА],Разходи[ДАТА],\"<=\"&Дата край,Разходи[ДАТА],\">=\"&Дата начало)","v":{"v":0,"d":"0.00 лв."}},{"$f":"SUMIFS(Разходи[СУМА],Разходи[ДАТА],\"<=\"&Дата край,Разходи[ДАТА],\">=\"&Дата начало)","v":{"v":0,"d":"0.00 лв."}},{"$f":"SUMIFS(Разходи[СУМА],Разходи[ДАТА],\"<=\"&Дата край,Разходи[ДАТА],\">=\"&Дата начало)","v":{"v":0,"d":"0.00 лв."}},{"$f":"SUMIFS(Разходи[СУМА],Разходи[ДАТА],\"<=\"&Дата край,Разходи[ДАТА],\">=\"&Дата начало)","v":{"v":0,"d":"0.00 лв."}},{"$f":"SUMIFS(Разходи[СУМА],Разходи[ДАТА],\"<=\"&Дата край,Разходи[ДАТА],\">=\"&Дата начало)","v":{"v":0,"d":"0.00 лв."}},{"$f":"SUMIFS(Разходи[СУМА],Разходи[ДАТА],\"<=\"&Дата край,Разходи[ДАТА],\">=\"&Дата начало)","v":{"v":0,"d":"0.00 лв."}},{"$f":"SUMIFS(Разходи[СУМА],Разходи[ДАТА],\"<=\"&Дата край,Разходи[ДАТА],\">=\"&Дата начало)","v":{"v":0,"d":"0.00 лв."}},{"$f":"SUMIFS(Разходи[СУМА],Разходи[ДАТА],\"<=\"&Дата край,Разходи[ДАТА],\">=\"&Дата начало)","v":{"v":0,"d":"0.00 лв."}},{"$f":"SUMIFS(Разходи[СУМА],Разходи[ДАТА],\"<=\"&Дата край,Разходи[ДАТА],\">=\"&Дата начало)","v":{"v":0,"d":"0.00 лв."}}]
[null,null,"Разходи 16-край на месеца",{"$f":"SUMIFS(Разходи[СУМА],Разходи[ДАТА],\"<=\"&Дата край,Разходи[ДАТА],\">=\"&Дата среда+1)","v":{"v":0,"d":"0.00 лв."}},{"$f":"SUMIFS(Разходи[СУМА],Разходи[ДАТА],\"<=\"&Дата край,Разходи[ДАТА],\">=\"&Дата среда+1)","v":{"v":0,"d":"0.00 лв."}},{"$f":"SUMIFS(Разходи[СУМА],Разходи[ДАТА],\"<=\"&Дата край,Разходи[ДАТА],\">=\"&Дата среда+1)","v":{"v":0,"d":"0.00 лв."}},{"$f":"SUMIFS(Разходи[СУМА],Разходи[ДАТА],\"<=\"&Дата край,Разходи[ДАТА],\">=\"&Дата среда+1)","v":{"v":0,"d":"0.00 лв."}},{"$f":"SUMIFS(Разходи[СУМА],Разходи[ДАТА],\"<=\"&Дата край,Разходи[ДАТА],\">=\"&Дата среда+1)","v":{"v":0,"d":"0.00 лв."}},{"$f":"SUMIFS(Разходи[СУМА],Разходи[ДАТА],\"<=\"&Дата край,Разходи[ДАТА],\">=\"&Дата среда+1)","v":{"v":0,"d":"0.00 лв."}},{"$f":"SUMIFS(Разходи[СУМА],Разходи[ДАТА],\"<=\"&Дата край,Разходи[ДАТА],\">=\"&Дата среда+1)","v":{"v":0,"d":"0.00 лв."}},{"$f":"SUMIFS(Разходи[СУМА],Разходи[ДАТА],\"<=\"&Дата край,Разходи[ДАТА],\">=\"&Дата среда+1)","v":{"v":0,"d":"0.00 лв."}},{"$f":"SUMIFS(Разходи[СУМА],Разходи[ДАТА],\"<=\"&Дата край,Разходи[ДАТА],\">=\"&Дата среда+1)","v":{"v":0,"d":"0.00 лв."}},{"$f":"SUMIFS(Разходи[СУМА],Разходи[ДАТА],\"<=\"&Дата край,Разходи[ДАТА],\">=\"&Дата среда+1)","v":{"v":0,"d":"0.00 лв."}},{"$f":"SUMIFS(Разходи[СУМА],Разходи[ДАТА],\"<=\"&Дата край,Разходи[ДАТА],\">=\"&Дата среда+1)","v":{"v":0,"d":"0.00 лв."}},{"$f":"SUMIFS(Разходи[СУМА],Разходи[ДАТА],\"<=\"&Дата край,Разходи[ДАТА],\">=\"&Дата среда+1)","v":{"v":0,"d":"0.00 лв."}}]

{"sheet":"Разходи и приходи","index":1,"n_rows":40,"n_cols":10,"rows_kept":40}
[]
[null,null,"Полумесечен домашен бюджет",{"$nulls":6},"ПРИХОДИ И РАЗХОДИ"]
[]
[]
[]
[null,null,"ПРИХОДИ",{"$nulls":3},"РАЗХОДИ"]
[]
[null,null,"ДАТА","ОПИСАНИЕ","СУМА",null,"ДАТА","КАТЕГОРИЯ","ОПИСАНИЕ","СУМА"]
[null,null,{"$f":"NOW()-14","v":"2013-02-06T14:43:42.960"},"Плащане на Борислав",{"v":1300,"d":"1,300.00 лв."},null,{"$f":"NOW()-7","v":"2013-02-13T14:43:42.960"},"Домакинство","Ипотека",{"v":1000,"d":"1,000.00 лв."}]
[null,null,{"$f":"NOW()-14","v":"2013-02-06T14:43:42.960"},"Плащане на Надежда",{"v":1300,"d":"1,300.00 лв."},null,{"$f":"NOW()-7","v":"2013-02-13T14:43:42.960"},"Домакинство","Електричество",{"v":100,"d":"100.00 лв."}]
[null,null,{"$f":"NOW()-28","v":"2013-01-23T14:43:42.960"},"Плащане на Борислав",{"v":1500,"d":"1,500.00 лв."},null,"2013-02-13T14:43:42.960","Домакинство","ВиК",{"v":50,"d":"50.00 лв."}]
[null,null,"2013-01-23T14:43:42.960","Плащане на Надежда",{"v":1600,"d":"1,600.00 лв."},null,"2013-02-13T14:43:42.960","Домакинство","Боклук",{"v":25,"d":"25.00 лв."}]
[null,null,{"$f":"NOW()-42","v":"2013-01-09T14:43:42.960"},"Плащане на Борислав",{"v":1300,"d":"1,300.00 лв."},null,"2013-02-13T14:43:42.960","Домакинство","Мобилен телефон",{"v":100,"d":"100.00 лв."}]
[null,null,"2013-01-09T14:43:42.960","Плащане на Надежда",{"v":1300,"d":"1,300.00 лв."},null,"2013-02-13T14:43:42.960","Домакинство","Домашен телефон",{"v":30,"d":"30.00 лв."}]
[null,null,{"$f":"NOW()-56","v":"2012-12-26T14:43:42.960"},"Плащане на Борислав",{"v":1500,"d":"1,500.00 лв."},null,"2013-02-13T14:43:42.960","Домакинство","Интернет",{"v":50,"d":"50.00 лв."}]
[null,null,"2012-12-26T14:43:42.960","Плащане на Надежда",{"v":1600,"d":"1,600.00 лв."},null,"2013-02-13T14:43:42.960","Домакинство","Телевизия",{"v":50,"d":"50.00 лв."}]
[null,null,{"$f":"NOW()-70","v":"2012-12-12T14:43:42.960"},"Плащане на Борислав",{"v":1300,"d":"1,300.00 лв."},null,"2013-02-13T14:43:42.960","Домакинство","Поддръжка/ремонти",{"v":25,"d":"25.00 лв."}]
[{"$nulls":6},{"$f":"NOW()-8","v":"2013-02-12T14:43:42.960"},"Домакинство","Кредитна карта 1",{"v":100,"d":"100.00 лв."}]
[{"$nulls":6},{"$f":"NOW()-9","v":"2013-02-11T14:43:42.960"},"Забавления","Филми",{"v":37,"d":"37.00 лв."}]
[{"$nulls":6},{"$f":"NOW()-10","v":"2013-02-10T14:43:42.960"},"Храна","Продукти",{"v":350,"d":"350.00 лв."}]
[{"$nulls":6},{"$f":"NOW()-11","v":"2013-02-09T14:43:42.960"},"Храна","Ресторант",{"v":75,"d":"75.00 лв."}]
[{"$nulls":6},{"$f":"NOW()-12","v":"2013-02-08T14:43:42.960"},"Деца","Пари за обяд",{"v":150,"d":"150.00 лв."}]
[{"$nulls":6},{"$f":"NOW()-13","v":"2013-02-07T14:43:42.960"},"Инвестиционни сметки","Спестявания",{"v":250,"d":"250.00 лв."}]
[{"$nulls":6},{"$f":"NOW()-14","v":"2013-02-06T14:43:42.960"},"Инвестиционни сметки","Инвестиционна сметка",{"v":250,"d":"250.00 лв."}]
[{"$nulls":6},{"$f":"NOW()-15","v":"2013-02-05T14:43:42.960"},"Лични","Здраве/фитнес клуб",{"v":100,"d":"100.00 лв."}]
[{"$nulls":6},{"$f":"NOW()-16","v":"2013-02-04T14:43:42.960"},"Домашни любимци","Храна",{"v":50,"d":"50.00 лв."}]
[{"$nulls":6},{"$f":"NOW()-20","v":"2013-01-31T14:43:42.960"},"Домашни любимци","Грижи за външността",{"v":50,"d":"50.00 лв."}]
[{"$nulls":6},{"$f":"NOW()-20","v":"2013-01-31T14:43:42.960"},"Домашни любимци","Други",{"v":50,"d":"50.00 лв."}]
[{"$nulls":6},{"$f":"NOW()-25","v":"2013-01-26T14:43:42.960"},"Транспорт","Изплащане на кола 1",{"v":300,"d":"300.00 лв."}]
[{"$nulls":6},{"$f":"NOW()-25","v":"2013-01-26T14:43:42.960"},"Транспорт","Изплащане на кола 2",{"v":350,"d":"350.00 лв."}]
[{"$nulls":6},{"$f":"NOW()-25","v":"2013-01-26T14:43:42.960"},"Транспорт","Застраховка за кола",{"v":50,"d":"50.00 лв."}]
[{"$nulls":6},{"$f":"NOW()-30","v":"2013-01-21T14:43:42.960"},"Транспорт","Гориво",{"v":50,"d":"50.00 лв."}]
[{"$nulls":6},{"$f":"NOW()-31","v":"2013-01-20T14:43:42.960"},"Транспорт","Гориво",{"v":25,"d":"25.00 лв."}]
[{"$nulls":6},{"$f":"NOW()-42","v":"2013-01-09T14:43:42.960"},"Транспорт","Поддръжка/ремонти",{"v":150,"d":"150.00 лв."}]
[{"$nulls":6},{"$f":"NOW()-45","v":"2013-01-06T14:43:42.960"},"Домакинство","Ипотека",{"v":5000,"d":"5,000.00 лв."}]
[{"$nulls":6},{"$f":"NOW()-50","v":"2013-01-01T14:43:42.960"},"Домакинство","Консумативи",{"v":200,"d":"200.00 лв."}]
[{"$nulls":6},{"$f":"NOW()-65","v":"2012-12-17T14:43:42.960"},"Домакинство","Домашен телефон",{"v":100,"d":"100.00 лв."}]
[{"$nulls":6},{"$f":"NOW()-70","v":"2012-12-12T14:43:42.960"},"Домакинство","Боклук",{"v":50,"d":"50.00 лв."}]
[{"$nulls":6},{"$f":"NOW()-75","v":"2012-12-07T14:43:42.960"},"Домакинство","Ипотека",{"v":1000,"d":"1,000.00 лв."}]
[{"$nulls":6},{"$f":"NOW()-78","v":"2012-12-04T14:43:42.960"},"Забавления","Филми",{"v":75,"d":"75.00 лв."}]

{"sheet":"Отчет за бюджета","index":2,"n_rows":41,"n_cols":8,"rows_kept":41}
[]
[null,null,"Полумесечен домашен бюджет",{"$nulls":4},"ОТЧЕТ ЗА БЮДЖЕТА"]
{"$rows_empty":10}
[null,null,"РАЗХОДИ",null,null,"ОБЩО ЗА КАТЕГОРИЯ"]
[]
[null,null,"ОПИСАНИЕ","ОБЩИ СУМИ"]
[null,null,"Боклук",{"v":75,"d":"75 лв."}]
[null,null,"ВиК",{"v":50,"d":"50 лв."}]
[null,null,"Гориво",{"v":75,"d":"75 лв."}]
[null,null,"Грижи за външността",{"v":50,"d":"50 лв."}]
[null,null,"Домашен телефон",{"v":130,"d":"130 лв."}]
[null,null,"Други",{"v":50,"d":"50 лв."}]
[null,null,"Електричество",{"v":100,"d":"100 лв."}]
[null,null,"Застраховка за кола",{"v":50,"d":"50 лв."}]
[null,null,"Здраве/фитнес клуб",{"v":100,"d":"100 лв."}]
[null,null,"Изплащане на кола 1",{"v":300,"d":"300 лв."}]
[null,null,"Изплащане на кола 2",{"v":350,"d":"350 лв."}]
[null,null,"Инвестиционна сметка",{"v":250,"d":"250 лв."}]
[null,null,"Интернет",{"v":50,"d":"50 лв."}]
[null,null,"Ипотека",{"v":7000,"d":"7,000 лв."}]
[null,null,"Консумативи",{"v":200,"d":"200 лв."}]
[null,null,"Кредитна карта 1",{"v":100,"d":"100 лв."}]
[null,null,"Мобилен телефон",{"v":100,"d":"100 лв."}]
[null,null,"Пари за обяд",{"v":150,"d":"150 лв."}]
[null,null,"Поддръжка/ремонти",{"v":175,"d":"175 лв."}]
[null,null,"Продукти",{"v":350,"d":"350 лв."}]
[null,null,"Ресторант",{"v":75,"d":"75 лв."}]
[null,null,"Спестявания",{"v":250,"d":"250 лв."}]
[null,null,"Телевизия",{"v":50,"d":"50 лв."}]
[null,null,"Филми",{"v":112,"d":"112 лв."}]
[null,null,"Храна",{"v":50,"d":"50 лв."}]
[null,null,"ОБЩО",{"v":10242,"d":"10,242 лв."}]

{"sheet":"Списъци с данни","index":3,"n_rows":20,"n_cols":14,"rows_kept":20}
[]
[null,null,"Полумесечен домашен бюджет",{"$nulls":10},"СПИСЪЦИ С ДАННИ"]
[]
[]
[null,null,"НАСТРОЙКА         Данните от \"Категория\" по-долу запълват падащите списъци в таблицата \"Разход\" на листа \"Разходи и приходи\". Променете имената на категории или описанията под всяка категория, за да актуализирате списъците."]
[]
[null,null,"Домакинство","Забавления","Храна","Подаръци/дарения","Деца","Инвестиционни сметки","Медицински","Други","Лични","Домашни любимци","Данъци/юридически","Транспорт"]
[null,null,"Ипотека","Филми","Продукти","Благотворителност 1","Дрехи","Пенсионна сметка","Лекар/клиника","Други","Дрехи","Храна","Федерални","Изплащане на кола 1"]
[null,null,"Електричество","Видео/кино","Ресторант","Благотворителност 2","Играчки/игри","Спестявания","Застраховка","Членски внос н организации","Подстригване/нокти","Консумативи","Областни","Изплащане на кола 2"]
[null,null,"ВиК","Музика",null,"Благотворителност 3","Пари за обяд","Разплащателна",null,null,"Химическо чистене","Медицински","Местни","Застраховка за кола"]
[null,null,"Боклук","Концерти/театър",null,"Подаръци","Вноски/такси","Пенсионна",null,null,"Здраве/фитнес клуб","Грижи за външността","Други","Лицензиране/регистрация"]
[null,null,"Мобилен телефон","Спортни прояви",null,null,"Училищни пособия","Инвестиционна сметка",null,null,"Пазаруване","Други","Адвокат","Гориво"]
[null,null,"Домашен телефон","Други",null,null,"Други","Колеж",null,null,"Други",null,"Издръжка на деца","Поддръжка/ремонти"]
[null,null,"Интернет",{"$nulls":3},"Пране","Заеми",{"$nulls":4},"Алименти","Публичен транспорт"]
[null,null,"Телевизия",{"$nulls":4},"Студентски заеми",{"$nulls":4},"Други"]
[null,null,"Поддръжка/ремонти"]
[null,null,"Консумативи"]
[null,null,"Кабелна/интернет/телефон"]
[null,null,"Кредитна карта 1"]
[null,null,"Кредитна карта 2"]

{"sheet":"Обобщена таблица на категориите","index":4,"n_rows":16,"n_cols":14,"rows_kept":16,"hidden":true}
[]
[null,null,"Полумесечен домашен бюджет",{"$nulls":10},"ОБОБЩЕНО ЗА КАТЕГОРИЯ"]
[]
[]
[null,"Обобщената таблица е източникът за обобщената диаграма за общите суми за категория в листа \"Отчет за бюджета\"."]
[]
[null,null,"Етикети на редове","Сума от СУМА"]
[null,null,"Деца",{"v":150,"d":"150 лв."}]
[null,null,"Домакинство",{"v":7880,"d":"7,880 лв."}]
[null,null,"Домашни любимци",{"v":150,"d":"150 лв."}]
[null,null,"Забавления",{"v":112,"d":"112 лв."}]
[null,null,"Инвестиционни сметки",{"v":500,"d":"500 лв."}]
[null,null,"Лични",{"v":100,"d":"100 лв."}]
[null,null,"Транспорт",{"v":925,"d":"925 лв."}]
[null,null,"Храна",{"v":425,"d":"425 лв."}]
[null,null,"Обща сума",{"v":10242,"d":"10,242 лв."}]